bitfinex-derivatives/quotes_SOLF0:USTF0_20250823
["timestamp","ask_amount","ask_price","bid_price","bid_amount"]
[1755990491502,121.1,204.33,204.31,4.93969951]
[1755990491701,121.1,204.33,204.32,4.93969951]
[1755990492301,2.63,204.33,204.32,4.93969951]
[1755990492503,123.73,204.33,204.32,4.93969951]
[1755990493907,2.63,204.33,204.32,4.93969951]
[1755990494112,123.71,204.33,204.32,4.93969951]
[1755990499108,2.76269154,204.35,204.32,4.93969951]
[1755990499316,2.63,204.37,204.33,4.93969951]
[1755990499509,123.69,204.37,204.34,7.58969951]
[1755990499714,5.39269154,204.36,204.35,4.93969951]
[1755990499910,2.63,204.36,204.35,4.93969951]
[1755990500107,5.39269154,204.36,204.35,4.93969951]
[1755990500614,5.39269154,204.36,204.35,4.93747457]
[1755990500615,123.82269154,204.36,204.35,4.93747457]
[1755990500915,121.06,204.36,204.35,4.93747457]
[1755990501114,123.82269154,204.36,204.35,4.93747457]
[1755990501314,121.06,204.36,204.35,4.93747457]
[1755990501516,123.69,204.36,204.35,4.93747457]
[1755990502117,2.63,204.36,204.35,4.93747457]
[1755990502324,123.69,204.36,204.35,4.93747457]
[1755990509425,126.45269154,204.36,204.35,4.93747457]
[1755990510526,126.45269154,204.36,204.35,4.88279463]
[1755990510727,5.39269154,204.36,204.35,4.88279463]
[1755990510926,5.39269154,204.36,204.3,2.65]
[1755990511129,123.65,204.35,204.31,7.53324975]
[1755990511325,2.63,204.34,204.32,4.88324975]
[1755990511525,2.63,204.34,204.33,4.88324975]
[1755990511827,123.78269154,204.35,204.33,4.88324975]
[1755990512027,123.78269154,204.35,204.34,4.88324975]
[1755990512327,126.41269154,204.35,204.34,4.88324975]
[1755990514924,123.65,204.35,204.34,4.88324975]
[1755990516426,2.63,204.35,204.34,4.88324975]
[1755990516629,123.63,204.35,204.34,4.88324975]
[1755990520330,123.63,204.35,204.34,4.8824087]
[1755990521332,2.63,204.35,204.34,4.8824087]
[1755990521534,123.61,204.35,204.34,4.8824087]
[1755990523436,2.63,204.35,204.34,4.8824087]
[1755990523635,123.61,204.35,204.34,4.8824087]
[1755990524035,2.63,204.35,204.34,4.8824087]
[1755990524237,123.59,204.35,204.34,4.8824087]
[1755990526138,2.63,204.35,204.34,4.8824087]
[1755990526340,123.59,204.35,204.34,4.8824087]
[1755990526542,2.63,204.35,204.34,4.8824087]
[1755990526937,123.59,204.35,204.34,4.8824087]
[1755990527242,2.63,204.35,204.34,4.8824087]
[1755990527442,123.59,204.35,204.34,4.8824087]
[1755990527844,2.63,204.35,204.34,4.8824087]
[1755990528037,123.59,204.35,204.34,4.8824087]
[1755990529143,2.63,204.35,204.34,4.8824087]
[1755990529343,123.59,204.35,204.34,4.8824087]
[1755990530344,123.59,204.35,204.34,4.8807031]
[1755990532844,123.57,204.35,204.34,4.8807031]
[1755990534848,2.63,204.35,204.34,4.8807031]
[1755990535050,123.57,204.35,204.34,4.8807031]
[1755990536942,123.57,204.35,204.34,4.88206122]
[1755990540352,2.71,204.32,204.25,2.63]
[1755990540553,123.66269154,204.31,204.25,2.63]
[1755990541556,123.66269154,204.31,204.26,4.8968]
[1755990541758,2.71,204.3,204.27,2.63]
[1755990543254,2.71,204.29,204.27,2.63]
[1755990543557,2.71,204.28,204.26,7.5268]
[1755990546953,2.71,204.28,204.26,7.5568]
[1755990548055,2.71,204.28,204.26,4.8968]
[1755990548249,2.71,204.28,204.27,2.66]
[1755990548446,5.42269154,204.29,204.27,2.66]
[1755990549958,2.66,204.29,204.27,2.66]
[1755990550459,2.66,204.29,204.27,7.5565]
[1755990552254,2.66,204.29,204.28,4.81869943]
[1755990553459,2.66,204.37,204.29,2.66]
[1755990553651,2.66,204.37,204.26,2.76269154]
[1755990553652,2.76269154,204.34,204.31,2.66]
[1755990553858,2.76269154,204.34,204.32,7.47869943]
[1755990554158,126.30269154,204.34,204.33,4.81869943]
[1755990554754,123.54,204.34,204.33,4.81869943]
[1755990556163,120.86,204.35,204.33,7.47869943]
[1755990556357,123.52,204.35,204.34,4.81869943]
[1755990559065,123.52,204.35,204.34,4.81494501]
[1755990561057,5.42269154,204.35,204.34,4.81494501]
[1755990561261,126.26269154,204.35,204.34,4.81494501]
[1755990564068,126.24269154,204.35,204.34,4.81494501]
[1755990564365,5.42269154,204.35,204.34,4.81494501]
[1755990564669,126.24269154,204.35,204.34,4.81494501]
[1755990565768,4.8952,204.33,204.26,2.66]
[1755990565968,2.66,204.31,204.28,2.66]
[1755990566165,2.66,204.31,204.29,4.8153545]
[1755990566373,2.66,204.31,204.3,4.8153545]
[1755990568665,2.66,204.31,204.27,2.66]
[1755990568973,2.66,204.3,204.28,7.47746129]
[1755990569174,2.66,204.3,204.29,4.81746129]
[1755990571272,2.76269154,204.31,204.3,2.66]
[1755990571473,123.54269154,204.31,204.3,7.47746129]
[1755990571672,126.20269154,204.31,204.3,4.81746129]
[1755990572075,123.44,204.31,204.27,2.66]
[1755990572274,123.44,204.31,204.28,4.81021583]
[1755990572480,126.20269154,204.31,204.29,4.81021583]
[1755990572670,126.20269154,204.31,204.3,4.81021583]
[1755990578690,126.20269154,204.31,204.3,4.81254099]
[1755990579594,5.42269154,204.31,204.3,4.81254099]
[1755990579788,126.18269154,204.31,204.3,4.81254099]
[1755990581386,4.8956,204.32,204.3,4.81254099]
[1755990581592,4.8956,204.32,204.31,4.81254099]
[1755990581593,2.6,204.32,204.31,4.81254099]
[1755990583186,120.74,204.32,204.31,7.39254099]
[1755990583686,2.76269154,204.35,204.32,2.58]
[1755990583890,123.34,204.34,204.33,4.81254099]
[1755990586195,2.6,204.34,204.33,4.81254099]
[1755990586389,123.34,204.34,204.33,4.81254099]
[1755990586990,123.32,204.34,204.33,4.81254099]
[1755990588396,123.32,204.34,204.33,4.81027163]
[1755990591396,123.3,204.34,204.33,4.81027163]
[1755990593201,2.6,204.34,204.33,4.81027163]
[1755990593401,2.6,204.39,204.34,2.58]
[1755990593594,123.28,204.38,204.35,7.39027163]
[1755990593796,123.28,204.38,204.36,4.81027163]
[1755990594088,123.28,204.38,204.37,4.81027163]
[1755990595796,2.6,204.38,204.37,4.81027163]
[1755990595996,123.28,204.38,204.37,4.81027163]
[1755990598402,126.04269154,204.38,204.33,4.8951]
[1755990598701,2.6,204.37,204.34,7.38990062]
[1755990598894,2.6,204.37,204.34,2.58]
[1755990599099,2.6,204.37,204.35,4.80999727]
[1755990599301,2.6,204.37,204.36,4.80944302]
[1755990601597,123.42269154,204.38,204.36,4.80944302]
[1755990601797,123.42269154,204.38,204.37,4.80944302]
[1755990602195,5.36269154,204.38,204.37,4.80944302]
[1755990602403,2.76269154,204.38,204.3,5.34269154]
[1755990602600,2.76269154,204.36,204.31,7.3898959]
[1755990602798,2.6,204.34,204.32,7.3898959]
[1755990602998,2.6,204.34,204.33,4.8098959]
[1755990603204,5.36269154,204.34,204.33,4.8098959]
[1755990603900,2.6,204.34,204.33,4.8098959]
[1755990604103,2.76269154,204.37,204.33,7.5798959]
[1755990604304,123.27,204.36,204.34,4.8098959]
[1755990604505,2.65,204.38,204.35,4.8098959]
[1755990604809,2.65,204.37,204.36,4.8098959]
[1755990607206,2.65,204.37,204.35,2.77]
[1755990608110,126.03269154,204.38,204.32,2.77]
[1755990608304,123.38269154,204.38,204.34,2.77]
[1755990608513,2.76269154,204.37,204.35,4.80727964]
[1755990608711,2.65,204.36,204.34,2.77]
[1755990608904,2.65,204.36,204.35,4.80725592]
[1755990611906,5.41269154,204.37,204.35,7.57725592]
[1755990612107,5.41269154,204.37,204.35,2.77]
[1755990613511,2.65,204.36,204.32,2.77]
[1755990613810,2.65,204.36,204.34,2.77]
[1755990614010,2.65,204.36,204.35,4.80706815]
[1755990614710,5.41269154,204.37,204.35,7.57706815]
[1755990614909,5.41269154,204.37,204.35,2.77]
[1755990615911,5.41269154,204.37,204.36,4.8071022]
[1755990617211,5.41269154,204.37,204.36,4.8073125]
[1755990617607,2.76269154,204.37,204.36,7.5773125]
[1755990619016,120.56,204.4,204.36,4.8073125]
[1755990619211,2.76269154,204.38,204.37,7.5773125]
[1755990620014,5.41269154,204.38,204.37,4.8073125]
[1755990622611,5.41269154,204.38,204.32,4.8954]
[1755990622915,125.4537,204.4,204.34,2.77]
[1755990622916,5.41269154,204.37,204.34,2.77]
[1755990623116,5.41269154,204.37,204.35,4.80854593]
[1755990623315,5.41269154,204.37,204.36,4.80854593]
[1755990624018,2.76269154,204.4,204.37,2.77]
[1755990624213,2.65,204.42,204.39,2.77]
[1755990624511,2.76269154,204.41,204.39,2.77]
[1755990625410,2.76269154,204.41,204.4,4.80804955]
[1755990625605,2.65,204.42,204.4,7.57804955]
[1755990625810,2.76269154,204.41,204.4,2.77]
[1755990626010,2.76269154,204.41,204.4,7.57801859]
[1755990627117,2.76269154,204.41,204.4,7.5786767]
[1755990632516,2.65,204.42,204.4,7.5786767]
[1755990632718,2.76269154,204.41,204.4,2.77]
[1755990632918,2.76269154,204.41,204.4,7.58473251]
[1755990633421,5.41269154,204.41,204.4,4.81473251]
[1755990633620,5.41269154,204.41,204.4,4.81482085]
[1755990636927,5.41269154,204.41,204.4,4.81582472]
[1755990642228,5.41269154,204.41,204.35,2.79]
[1755990642423,2.76269154,204.37,204.36,4.81906433]
[1755990642631,2.76269154,204.37,204.36,7.60906433]
[1755990643430,2.76269154,204.37,204.36,7.49105828]
[1755990646636,2.76269154,204.37,204.36,2.79]
[1755990646933,2.76269154,204.37,204.36,7.4905374]
[1755990647434,2.76269154,204.37,204.36,2.79]
[1755990647636,2.76269154,204.37,204.36,7.49058962]
[1755990651238,2.76269154,204.37,204.36,7.49260111]
[1755990656644,2.76269154,204.37,204.36,2.79]
[1755990656837,2.76269154,204.37,204.36,7.49215795]
[1755990657540,2.76269154,204.37,204.36,7.49215491]
[1755990663235,2.76269154,204.37,204.36,4.70215491]
[1755990663438,2.58,204.39,204.36,4.70215491]
[1755990663743,2.58,204.39,204.37,4.69144939]
[1755990663940,2.76269154,204.38,204.37,2.68]
[1755990664140,2.76269154,204.38,204.37,7.37123193]
[1755990665344,2.76269154,204.38,204.37,2.68]
[1755990665548,2.76269154,204.38,204.37,7.37220641]
[1755990666347,2.76269154,204.38,204.37,7.37209734]
[1755990667750,2.77,204.41,204.37,4.69209734]
[1755990668046,2.76269154,204.39,204.38,2.68]
[1755990668441,2.77,204.4,204.38,2.68]
[1755990668639,2.76269154,204.41,204.39,4.69176611]
[1755990668838,2.76269154,204.41,204.4,7.37105563]
[1755990669046,7.6627,204.44,204.4,7.37105563]
[1755990669248,2.76269154,204.42,204.41,2.68]
[1755990672152,2.77,204.43,204.41,2.68]
[1755990672355,2.76269154,204.42,204.41,2.68]
[1755990674254,2.76269154,204.42,204.41,7.37017496]
[1755990674455,2.76269154,204.43,204.41,4.69017496]
[1755990674761,331.87,204.51,204.42,4.69017496]
[1755990674952,2.76269154,204.47,204.43,4.69017496]
[1755990675252,2.76269154,204.47,204.45,2.68]
[1755990675449,5.53269154,204.47,204.46,4.68688127]
[1755990675647,2.76269154,204.47,204.42,2.68]
[1755990675847,2.76269154,204.43,204.42,2.68]
[1755990676043,2.77,204.45,204.42,7.36721241]
[1755990676354,2.76269154,204.43,204.42,2.68]
[1755990676655,2.76269154,204.43,204.42,7.3665126]
[1755990677356,5.53269154,204.43,204.42,4.6865126]
[1755990677555,2.76269154,204.43,204.39,2.68]
[1755990677850,2.76269154,204.41,204.4,7.36522059]
[1755990678055,0.85119914,204.51,204.41,2.68]
[1755990678258,2.76269154,204.53,204.45,2.76269154]
[1755990678550,2.76269154,204.51,204.48,2.68]
[1755990678751,2.76269154,204.51,204.49,4.6753502]
[1755990678952,2.76269154,204.51,204.5,2.68]
[1755990679150,2.76269154,204.51,204.5,7.35476761]
[1755990679350,2.76269154,204.51,204.5,2.68]
[1755990679749,5.53269154,204.51,204.42,2.76269154]
[1755990680055,5.53269154,204.51,204.44,5.44269154]
[1755990680252,2.77,204.51,204.46,2.68]
[1755990680554,2.77,204.51,204.48,2.68]
[1755990680754,2.77,204.51,204.46,2.68]
[1755990681054,2.77,204.51,204.48,2.68]
[1755990681258,4.8904,204.53,204.46,2.68]
[1755990681458,11.96932886,204.55,204.48,2.68]
[1755990682050,7.66,204.55,204.5,2.68]
[1755990682257,7.66,204.55,204.48,2.68]
[1755990682557,7.66,204.55,204.49,4.7260281]
[1755990682747,2.77,204.54,204.5,7.4060281]
[1755990683057,2.77,204.54,204.5,2.68]
[1755990683450,7.6604,204.54,204.5,2.68]
[1755990684955,7.6604,204.54,204.51,2.68]
[1755990685258,2.77,204.54,204.51,2.68]
[1755990688666,2.77,204.52,204.45,2.68]
[1755990688856,2.77,204.52,204.46,4.71451703]
[1755990689162,4.8907,204.53,204.45,2.68]
[1755990689351,4.8907,204.53,204.47,2.68]
[1755990690362,7.6607,204.53,204.47,2.68]
[1755990691960,2.77,204.53,204.47,2.68]
[1755990694355,7.6606,204.53,204.47,2.68]
[1755990696069,2.77,204.53,204.47,2.68]
[1755990697069,4.8913,204.5,204.47,2.68]
[1755990697266,4.8913,204.5,204.48,2.68]
[1755990697465,4.8913,204.5,204.49,2.68]
[1755990697668,4.8908,204.52,204.49,2.68]
[1755990697969,7.4408,204.52,204.49,2.68]
[1755990698869,4.8911,204.51,204.49,2.68]
[1755990699265,7.4411,204.51,204.49,2.68]
[1755990700066,4.8911,204.51,204.42,93.98960095]
[1755990700273,4.8905,204.53,204.47,2.68]
[1755990700768,5.30738343,204.54,204.47,2.68]
[1755990701161,4.8908,204.52,204.47,2.68]
[1755990701359,4.8908,204.52,204.46,2.75738343]
[1755990701565,2.75738343,204.54,204.47,2.68]
[1755990701772,2.75738343,204.54,204.49,2.68]
[1755990701974,5.30738343,204.54,204.5,2.68]
[1755990702468,7.4406,204.53,204.5,2.68]
[1755990706079,2.55,204.52,204.47,5.43738343]
[1755990706271,2.55,204.52,204.48,2.68]
[1755990706463,2.55,204.52,204.49,2.68]
[1755990706666,2.55,204.52,204.47,2.75738343]
[1755990706872,2.55,204.52,204.5,2.68]
[1755990707476,4.8907,204.51,204.5,2.68]
[1755990707778,2.55,204.52,204.47,2.75738343]
[1755990708077,2.55,204.52,204.5,2.68]
[1755990710478,2.55,204.54,204.51,2.68]
[1755990710877,7.64738343,204.55,204.51,2.68]
[1755990711179,2.55,204.53,204.51,2.68]
[1755990712882,2.55,204.52,204.49,2.68]
[1755990713083,2.55,204.52,204.5,2.68]
[1755990716181,7.44,204.55,204.48,2.68]
[1755990716382,2.55,204.53,204.5,2.68]
[1755990716578,2.55,204.53,204.51,7.42082085]
[1755990716884,2.55,204.53,204.51,2.68]
[1755990717484,2.55,204.53,204.52,4.74481027]
[1755990717677,2.75738343,204.54,204.52,7.42481027]
[1755990717982,2.55,204.53,204.47,7.64908343]
[1755990718285,2.55,204.53,204.51,2.68]
[1755990718486,2.55,204.53,204.52,4.74481027]
[1755990722785,5.30738343,204.53,204.52,4.74481027]
[1755990723588,4.8905,204.52,204.49,2.68]
[1755990723890,2.74,204.51,204.5,4.80239123]
[1755990730388,2.74,204.53,204.5,7.57239123]
[1755990730587,2.74,204.52,204.51,4.80239123]
[1755990733294,2.74,204.52,204.5,2.77]
[1755990733492,2.74,204.52,204.51,4.80240565]
[1755990739306,4.8906,204.53,204.51,7.57240565]
[1755990739509,7.6306,204.53,204.52,4.80240565]
[1755990740803,2.74,204.53,204.52,4.80240565]
[1755990743297,2.74,204.53,204.52,4.80241226]
[1755990750212,5.49738343,204.53,204.52,4.80241226]
[1755990751808,2.74,204.53,204.52,4.80241226]
[1755990752715,4.8897,204.57,204.53,2.77]
[1755990753011,0.8510222,204.58,204.54,4.80241226]
[1755990753012,2.74,204.55,204.54,4.80241226]
[1755990753313,2.74,204.55,204.54,4.80552866]
[1755990753614,2.74,204.55,204.54,4.80467961]
[1755990755514,5.49738343,204.55,204.54,4.80465124]
[1755990755712,2.75738343,204.55,204.54,7.57465124]
[1755990756014,5.43738343,204.55,204.54,4.80465124]
[1755990760820,10.32748343,204.55,204.52,2.77]
[1755990761016,10.32748343,204.55,204.53,4.80777129]
[1755990761207,10.32748343,204.55,204.54,4.80633143]
[1755990762912,10.32748343,204.55,204.52,2.77]
[1755990763113,122.71738343,204.57,204.53,4.80567295]
[1755990763314,122.71738343,204.57,204.54,4.80567295]
[1755990763515,7.5689,204.6,204.55,4.80567295]
[1755990763814,2.75738343,204.59,204.57,2.77]
[1755990765213,5.43738343,204.59,204.57,2.77]
[1755990766118,2.68,204.58,204.52,4.8905]
[1755990766318,2.75738343,204.59,204.53,7.57045967]
[1755990766616,5.43738343,204.59,204.55,2.77]
[1755990766816,5.43738343,204.59,204.56,4.80045967]
[1755990767017,5.43738343,204.59,204.57,2.77]
[1755990767218,2.68,204.59,204.58,4.79828239]
[1755990767415,2.68,204.59,204.58,7.56828239]
[1755990767820,2.68,204.59,204.58,4.79828239]
[1755990768520,2.68,204.59,204.56,2.77]
[1755990768816,2.68,204.58,204.56,2.77]
[1755990771119,124.829,204.6,204.57,2.77]
[1755990771316,2.75738343,204.58,204.57,2.77]
[1755990776219,5.43738343,204.58,204.57,2.77]
[1755990779924,5.43738343,204.58,204.52,4.8907]
[1755990780123,5.43738343,204.58,204.54,2.77]
[1755990780124,2.75738343,204.58,204.54,2.77]
[1755990780327,2.68,204.57,204.55,4.78620602]
[1755990780526,4.89,204.57,204.46,24.4606]
[1755990780716,2.75738343,204.54,204.48,2.77]
[1755990780920,119.9,204.55,204.5,2.77]
[1755990781126,119.9,204.55,204.52,2.77]
[1755990781425,122.58,204.55,204.53,7.55678542]
[1755990781925,122.58,204.55,204.53,2.77]
[1755990782515,2.68,204.54,204.48,4.8919]
[1755990782720,2.68,204.54,204.52,2.77]
[1755990786924,119.9,204.55,204.53,2.63]
[1755990787123,125.38738343,204.55,204.53,2.63]
[1755990790229,122.65738343,204.55,204.53,2.63]
[1755990790430,2.73,204.54,204.47,7.64948343]
[1755990790629,2.73,204.54,204.48,9.15353489]
[1755990790928,2.73,204.54,204.51,2.63]
[1755990791130,2.73,204.54,204.52,4.79068485]
[1755990791332,2.73,204.54,204.48,2.63]
[1755990791530,122.65738343,204.55,204.49,4.79092859]
[1755990791725,2.73,204.54,204.51,2.63]
[1755990791924,2.73,204.54,204.52,4.79092859]
[1755990792125,2.73,204.54,204.51,2.63]
[1755990792326,2.73,204.54,204.52,4.79091408]
[1755990792528,7.6208,204.54,204.51,2.63]
[1755990792730,4.8908,204.54,204.52,4.79115707]
[1755990792932,2.73,204.53,204.51,2.63]
[1755990793130,2.73,204.53,204.52,4.79115707]
[1755990794833,2.73,204.53,204.52,4.79142483]
[1755990795734,4.8908,204.54,204.52,4.79142483]
[1755990796037,7.6208,204.54,204.53,4.7916901]
[1755990796237,7.6208,204.54,204.52,2.63]
[1755990796735,2.73,204.54,204.52,2.63]
[1755990801338,2.73,204.54,204.53,4.79147409]
[1755990802235,2.73,204.54,204.53,4.79166941]
[1755990803839,122.61,204.54,204.53,4.79166941]
[1755990805040,2.73,204.54,204.53,4.79166941]
[1755990805242,122.61,204.54,204.53,4.79166941]
[1755990806738,2.75738343,204.55,204.54,2.63]
[1755990807039,125.34738343,204.55,204.51,2.63]
[1755990807241,122.61738343,204.55,204.52,7.4226373]
[1755990807434,2.73,204.54,204.53,4.7926373]
[1755990811143,2.73,204.54,204.52,2.63]
[1755990811345,2.73,204.54,204.53,4.774137]
[1755990814146,122.57,204.54,204.53,4.774137]
[1755990820961,122.57,204.54,204.52,2.63]
[1755990821164,122.57,204.54,204.53,4.77839519]
[1755990821362,2.73,204.54,204.53,4.77839519]
[1755990821561,2.73,204.54,204.53,4.77888847]
[1755990821764,2.73,204.54,204.51,2.78]
[1755990821965,2.73,204.54,204.52,4.50883391]
[1755990822261,2.73,204.54,204.51,2.78]
[1755990822462,2.73,204.54,204.52,4.50981067]
[1755990822662,2.73,204.54,204.51,2.78]
[1755990822861,2.73,204.54,204.52,4.50981067]
[1755990823064,2.73,204.54,204.51,2.78]
[1755990823362,2.73,204.54,204.52,4.50981067]
[1755990823665,2.76,204.53,204.51,2.78]
[1755990823865,2.76,204.53,204.52,4.51107025]
[1755990827456,2.76,204.53,204.52,7.29107025]
[1755990830261,2.76,204.53,204.52,4.51107025]
[1755990830871,2.76,204.53,204.5,2.78]
[1755990831167,2.76,204.53,204.51,7.29472096]
[1755990831469,2.76,204.53,204.52,4.51472096]
[1755990838271,5.51738343,204.53,204.52,4.51472096]
[1755990839473,5.51738343,204.53,204.51,2.78]
[1755990839771,5.51738343,204.53,204.52,4.47263783]
[1755990840679,5.51738343,204.53,204.52,7.25263783]
[1755990840872,5.51738343,204.53,204.47,4.8921]
[1755990841075,5.51738343,204.53,204.5,2.78]
[1755990841275,5.51738343,204.53,204.51,7.25197756]
[1755990841474,5.51738343,204.53,204.51,2.78]
[1755990841669,5.51738343,204.53,204.52,4.47199287]
[1755990842172,2.76,204.53,204.52,4.47199287]
[1755990843079,122.51738343,204.54,204.52,4.47199287]
[1755990843080,119.76,204.54,204.52,7.25199287]
[1755990843281,125.27738343,204.54,204.52,2.78]
[1755990844778,2.55,204.53,204.45,7.65008343]
[1755990844986,2.55,204.53,204.5,2.74]
[1755990845183,2.55,204.53,204.51,7.21263516]
[1755990845379,2.55,204.53,204.52,4.47263516]
[1755990846781,5.30738343,204.53,204.52,4.47263516]
[1755990849584,5.30738343,204.53,204.51,2.74]
[1755990849887,5.30738343,204.53,204.52,4.47263911]
[1755990850284,5.30738343,204.53,204.52,4.47261463]
[1755990851184,5.30738343,204.53,204.51,2.74]
[1755990851683,2.55,204.53,204.51,2.74]
[1755990853987,122.27,204.53,204.51,2.74]
[1755990855384,2.55,204.52,204.51,2.74]
[1755990855593,2.55,204.52,204.51,7.21232911]
[1755990855987,119.72,204.53,204.51,7.21232911]
[1755990856186,122.27,204.53,204.51,2.74]
[1755990859692,125.02738343,204.53,204.51,2.74]
[1755990862995,122.27,204.53,204.51,2.74]
[1755990863190,119.72,204.53,204.52,2.74]
[1755990864201,119.72,204.53,204.52,7.21213186]
[1755990864596,122.27,204.53,204.52,7.21213186]
[1755990865194,119.72,204.53,204.52,7.21213186]
[1755990866292,119.72,204.53,204.52,7.2110897]
[1755990867599,122.27,204.53,204.52,7.2110897]
[1755990867994,2.55,204.53,204.52,7.2110897]
[1755990868899,2.55,204.53,204.52,4.4710897]
[1755990869099,122.23,204.56,204.52,7.2110897]
[1755990869290,2.55,204.54,204.53,4.4710897]
[1755990869490,2.55,204.54,204.53,4.46923299]
[1755990870302,5.30738343,204.54,204.53,4.46923299]
[1755990870494,5.30738343,204.54,204.51,2.74]
[1755990870495,2.55,204.53,204.51,2.74]
[1755990870691,2.55,204.53,204.52,4.46953399]
[1755990870899,2.55,204.53,204.47,2.74]
[1755990871100,2.75738343,204.54,204.48,4.47008734]
[1755990871301,2.55,204.51,204.49,4.47008734]
[1755990871601,2.55,204.51,204.5,4.47008734]
[1755990872903,2.55,204.51,204.5,7.21008734]
[1755990873300,2.55,204.52,204.5,7.21008734]
[1755990873603,2.55,204.52,204.51,4.47008734]
[1755990877804,2.55,204.52,204.45,2.63]
[1755990878102,2.67,204.47,204.39,2.63]
[1755990878405,2.67,204.42,204.4,7.0992696]
[1755990878703,2.67,204.42,204.41,4.4692696]
[1755990879006,5.42738343,204.44,204.41,7.0992696]
[1755990879206,5.42738343,204.44,204.42,4.4692696]
[1755990879507,2.67,204.43,204.4,2.63]
[1755990879704,2.67,204.43,204.41,4.4662488]
[1755990880003,2.67,204.43,204.42,4.4662488]
[1755990880194,39.98915575,204.59,204.41,2.63]
[1755990880395,39.98915575,204.59,204.45,2.75738343]
[1755990880396,2.67,204.58,204.45,2.75738343]
[1755990880597,2.67,204.53,204.47,5.38738343]
[1755990880799,2.67,204.53,204.48,4.45915179]
[1755990881097,2.67,204.53,204.5,2.63]
[1755990881301,2.67,204.56,204.52,2.63]
[1755990881494,2.67,204.56,204.5,2.63]
[1755990881705,2.67,204.56,204.51,4.53788652]
[1755990881900,2.67,204.56,204.49,2.75738343]
[1755990882106,2.67,204.56,204.54,2.63]
[1755990885108,2.75738343,204.58,204.54,2.63]
[1755990885311,5.42738343,204.58,204.55,2.63]
[1755990885510,2.67,204.57,204.55,2.63]
[1755990887907,2.75738343,204.58,204.52,2.63]
[1755990888109,2.75738343,204.58,204.54,2.63]
[1755990888309,2.75738343,204.58,204.56,2.63]
[1755990888909,5.42738343,204.58,204.56,2.63]
[1755990891818,2.67,204.58,204.56,2.63]
[1755990892005,2.67,204.58,204.54,2.63]
[1755990892006,5.42738343,204.58,204.54,2.63]
[1755990892208,5.42738343,204.58,204.55,2.63]
[1755990892916,2.67,204.57,204.55,2.63]
[1755990893513,2.67,204.57,204.51,2.63]
[1755990893713,2.67,204.57,204.5,7.64878343]
[1755990893714,2.67,204.56,204.53,2.63]
[1755990894108,2.67,204.56,204.5,7.64878343]
[1755990894314,2.67,204.56,204.54,2.63]
[1755990895915,2.75738343,204.58,204.54,2.63]
[1755990896113,2.67,204.57,204.54,2.63]
[1755990898217,2.67,204.57,204.5,7.64878343]
[1755990898420,2.67,204.57,204.55,2.63]
[1755990900116,4.89,204.57,204.5,4.8914]
[1755990900419,2.75738343,204.56,204.51,7.17246375]
[1755990900619,2.75738343,204.54,204.48,2.63]
[1755990900822,2.67,204.52,204.5,2.63]
[1755990903334,2.75738343,204.54,204.47,2.63]
[1755990903528,2.75738343,204.54,204.49,2.67]
[1755990904025,5.42738343,204.54,204.51,2.67]
[1755990904426,2.67,204.53,204.51,2.67]
[1755990905632,2.67,204.53,204.48,4.8919]
[1755990905827,2.75738343,204.54,204.49,4.54032673]
[1755990906022,2.67,204.52,204.49,2.67]
[1755990906626,2.67,204.53,204.49,2.67]
[1755990906821,2.67,204.51,204.49,2.67]
[1755990907231,2.67,204.51,204.46,77.72806588]